Cogmind - Beta 13 @@@ ROGUE MODE // 2024.04.09 @ 13:26:53 Player: Demo Result: Destroyed by P-60 Hacker with Shock Rifle Performance ------------- Evolutions (2) 1000 Regions Visited (5) 1000 Robots Destroyed (18) 90 Value Destroyed (327) 327 Prototype IDs (0) 0 Alien Tech Used (0) 0 Bonus (687) 687 TOTAL SCORE: 3104 Bonus ------- Entered Garrisons 200 Used RIF Installer 500 Friendly Fire -13 Cogmind --------- Core Integrity 0/550 Matter 226/300 Energy 53/100 System Corruption 3% Temperature Cool (0) Movement Rolling (90) Location -8/Garrison Parts ------- > --- POWER (1) -------- (None) > --- PROPULSION (2) --- Armored Wheel > --- UTILITY (6) ------ Seismic Detector > --- WEAPON (2) ------- Beamcaster > --- INVENTORY (5) ---- (None) Peak State ------------ > --- POWER ------------ Light Ion Engine > --- PROPULSION ------- Wheel Armored Wheel > --- UTILITY ---------- Seismic Detector Hardened Medium Armor Plating Hardened Medium Armor Plating Hardened Medium Armor Plating Hardened Medium Armor Plating Hardened Medium Armor Plating > --- WEAPON ----------- Beamcaster Light Assault Rifle > --- INVENTORY -------- Armored Wheel Armored Wheel Armored Wheel Medium Laser Mining Laser [Rating: 26] Favorites ----------- Power Light Ion Engine Engine Light Ion Engine Propulsion Armored Wheel Treads Light Treads Wheel Armored Wheel Utility Hardened Medium Armor Plating Device Seismic Detector Storage Small Storage Unit Protection Hardened Medium Armor Plating Weapon Light Assault Rifle Energy Gun Beamcaster Ballistic Gun Light Assault Rifle Special Weapon Mining Laser Build | -11 -10 -10 -10 -8 -8 ------- Run | Yrd Mat Min Sub Mat Gar Slots Evolved 4 | . . . . 4 . Power . | . . . . . . Propulsion . | . . . . . . Utility 4 | . . . . 4 . Weapon . | . . . . . . Parts Attached 30 | 8 . 1 3 . 18 Power 2 | 1 . . . . 1 Engine 2 | 1 . . . . 1 Core . | . . . . . . Reactor . | . . . . . . Propulsion 11 | 3 . . . . 8 Treads 1 | 1 . . . . . Leg . | . . . . . . Wheel 10 | 2 . . . . 8 Hover . | . . . . . . Flight . | . . . . . . Utility 9 | 2 . . 1 . 6 Device 2 | 1 . . . . 1 Storage 1 | 1 . . . . . Processor . | . . . . . . Hackware . | . . . . . . Protection 6 | . . . 1 . 5 Artifact . | . . . . . . Weapon 8 | 2 . 1 2 . 3 Energy Gun 4 | 1 . . 1 . 2 Energy Cannon . | . . . . . . Ballistic Gun 2 | 1 . . 1 . . Ballistic Cannon . | . . . . . . Launcher . | . . . . . . Special Weapon 2 | . . 1 . . 1 Impact Weapon . | . . . . . . Slashing Weapon . | . . . . . . Piercing Weapon . | . . . . . . Special Melee Weapon . | . . . . . . Unidentified Prototypes . | . . . . . . Parts Lost 11 | . . . . . 11 Power 1 | . . . . . 1 Propulsion 4 | . . . . . 4 Utility 3 | . . . . . 3 Weapon 3 | . . . . . 3 Highest Loss Streak 10 | . . . . . 10 To Critical Strikes . | . . . . . . Average Slot Usage (%) 85 | . 100 100 86 54 83 Engine 9 | . 14 14 14 9 8 Treads 4 | . 14 14 14 9 . Wheel 16 | . 14 14 14 9 16 Device 8 | . 14 14 1 . 9 Storage 1 | . 14 14 1 . . Protection 24 | . . . 12 9 30 Energy Gun 10 | . 14 14 14 9 8 Ballistic Gun 9 | . 14 6 10 9 8 Naked Turns . | . . . . . . Heaviest Build 52 | 12 12 12 27 27 52 Greatest Support 24 | 16 10 10 10 10 24 Greatest Overweight (x) 2 | 1 1 1 2 2 2 Average Overweight (x) 1 | . 1 1 1 2 1 Largest Inventory Capacity 8 | 8 8 8 8 5 5 Average Capacity 5 | 7 8 8 5 5 5 Most Carried 7 | 4 4 7 7 5 5 Average Carried 4 | 1 4 6 5 5 4 Final Capacity 8 | 8 8 8 5 5 5 Final Carried 7 | 4 4 7 5 5 . Class Distribution -------------------- 58% | Scavenger-Mutant 41% | Mutant Dominant Class ---------------- Mutant | -10/Materials Mutant | -10/Mines Mutant | -10/Subcaves Mutant | -8/Materials Scavenger-Mutant | -8/Garrison Resources | -11 -10 -10 -10 -8 -8 ----------- Run | Yrd Mat Min Sub Mat Gar Matter Collected 551 | 138 . 30 188 . 195 Remotely . | . . . . . . Salvage Created 722 | 118 . . 139 . 465 Parts 52 | 11 . . 10 . 31 Haulers Intercepted . | . . . . . . Recyclers Shooed . | . . . . . . Parts Field Recycled . | . . . . . . Retrieved Matter . | . . . . . . Parts Self-Destructed 2 | . . . 2 . . Prevented . | . . . . . . Kills | -11 -10 -10 -10 -8 -8 ------- Run | Yrd Mat Min Sub Mat Gar Combat Hostiles Destroyed 14 | . . . 3 . 11 Guns 14 | . . . 3 . 11 Classes Destroyed 6 | 2 . . 2 . 2 Tunneler 3 | 3 . . . . . Recycler 1 | 1 . . . . . Swarmer 9 | . . . . . 9 Sentry 2 | . . . . . 2 Artisan 1 | . . . 1 . . Subdweller 3 | . . . 3 . . Best Kill Streak 4 | 2 . . 2 . 4 Combat Bots Only 4 | . . . 2 . 4 Max Kills in Single Turn 1 | 1 . . 1 . 1 Gunslinging . | . . . . . . Exploded . | . . . . . . Melee . | . . . . . . Uniques/NPCs Destroyed . | . . . . . . Combat | -11 -10 -10 -10 -8 -8 -------- Run | Yrd Mat Min Sub Mat Gar Hostile Shots Fired 180 | . . . 10 . 170 Missed 35 | . . . 6 . 29 Damage Taken 2019 | . . . 172 . 1847 Core 555 | . . . . . 555 Absorbed by Shields . | . . . . . . Core Remaining (%) 100 | 100 . . 100 . . Volleys Fired 116 | 23 . 9 16 . 68 Largest 2 | 2 . 1 2 . 2 Hottest 100 | 70 . 100 95 . 95 Shots Fired 205 | 46 . 9 32 . 118 Gun 196 | 46 . . 32 . 118 Cannon . | . . . . . . Launcher . | . . . . . . Special 9 | . . 9 . . . Kinetic 101 | 23 . . 16 . 62 Thermal 104 | 23 . 9 16 . 56 Explosive . | . . . . . . Electromagnetic . | . . . . . . Robot Hit Streak 31 | 5 . . 10 . 31 Robot Miss Streak 5 | 3 . . 1 . 5 Penetration Max . | . . . . . . Secondary Targets 3 | . . . 1 . 2 Max Gunslinging Chain 1 | . . . 1 . 1 Shots Hit Robots 105 | 27 . . 24 . 54 Core Hits 45 | 10 . . 5 . 30 Critical Kills . | . . . . . . Critical Parts Destroyed . | . . . . . . Critical Strikes 5 | 1 . . 1 . 3 Burn 5 | 1 . . 1 . 3 Melee Attacks . | . . . . . . Impact . | . . . . . . Slashing . | . . . . . . Piercing . | . . . . . . Sneak Attacks . | . . . . . . Combat Hostiles . | . . . . . . Follow-up Attacks . | . . . . . . Damage Inflicted 1253 | 260 . . 255 . 738 Guns 1241 | 260 . . 255 . 726 Cannons . | . . . . . . Explosions . | . . . . . . Melee . | . . . . . . Ramming 12 | . . . . . 12 Kinetic 384 | 122 . . 97 . 165 Thermal 857 | 138 . . 158 . 561 Explosive . | . . . . . . Electromagnetic . | . . . . . . Impact . | . . . . . . Slashing . | . . . . . . Piercing . | . . . . . . Highest Corruption 2 | . . . . . 2 Average Corruption 1 | . . . . . 1 Corruption Purged . | . . . . . . Corruption Blocked . | . . . . . . Overload Shots . | . . . . . . Overflow Damage . | . . . . . . Projectiles . | . . . . . . Explosions . | . . . . . . Melee . | . . . . . . Knockbacks . | . . . . . . Impact . | . . . . . . Kinetic . | . . . . . . Secondary . | . . . . . . Self-Inflicted Damage 5 | . . . . . 5 Shots . | . . . . . . Rammed 6 | . . . . . 6 Targets Rammed 6 | . . . . . 6 Kicked . | . . . . . . Crushed . | . . . . . . Highest Temperature 934 | 290 . 100 14 . 934 Average Temperature 189 | 133 . 53 8 . 213 Received Heat Transfer 453 | . . . 21 . 432 Effects 33 | . . . . . 33 Shutdowns 5 | . . . . . 5 Energy Bleed 5 | . . . . . 5 Interference 7 | . . . . . 7 Matter Decay 2 | . . . . . 2 Short Circuit 3 | . . . . . 3 Damage (minor) 2 | . . . . . 2 Damage (major) 6 | . . . . . 6 Damage (core) 3 | . . . . . 3 Siege Activations . | . . . . . . Robots Corrupted . | . . . . . . Combat Hostiles . | . . . . . . Parts Fried . | . . . . . . Impact Corruptions . | . . . . . . Robots Melted . | . . . . . . Combat Hostiles . | . . . . . . Parts Melted 2 | 2 . . . . . Heat Transferred 2162 | 481 . . 518 . 1163 Parts Sabotaged . | . . . . . . Parts Stolen . | . . . . . . Parts Stripped . | . . . . . . Power Chain Reactions . | . . . . . . Alert | -11 -10 -10 -10 -8 -8 ------- Run | Yrd Mat Min Sub Mat Gar Peak Influence 375 | 20 13 4 . . 375 Initial 13 | . 13 4 . . . Average 139 | 8 13 4 . . 177 Maximum Alert Level 1 | . . . . . 1 Low Security (%) 59 | 100 100 100 . 100 47 Level 1 40 | . . . . . 52 Level 2 . | . . . . . . Level 3 . | . . . . . . Level 4 . | . . . . . . Level 5 . | . . . . . . High Security . | . . . . . . Max Security . | . . . . . . Squads Dispatched 2 | . 2 . . . . Investigation 2 | . 2 . . . . Extermination . | . . . . . . Reinforcement . | . . . . . . Assault . | . . . . . . Garrison . | . . . . . . Intercept . | . . . . . . Searches Triggered . | . . . . . . Construction Impeded . | . . . . . . Haulers Reinforced . | . . . . . . Active Scanning Responses . | . . . . . . Cargo Convoy Interrupts . | . . . . . . Stealth | -11 -10 -10 -10 -8 -8 --------- Run | Yrd Mat Min Sub Mat Gar Distress Signals 1 | . 1 . . . . Communications Jammed . | . . . . . . Distress Signals . | . . . . . . Times Spotted 36 | . 1 . 9 . 26 Peak Tracking Total 7 | . 2 . 4 . 7 Tactical Retreats 4 | . . . . . 4 Traps | -11 -10 -10 -10 -8 -8 ------- Run | Yrd Mat Min Sub Mat Gar Traps Triggered 9 | . . . . . 9 Indirectly . | . . . . . . Trap Hack Attempts . | . . . . . . Triggered . | . . . . . . Disarmed . | . . . . . . Reprogrammed . | . . . . . . Reused . | . . . . . . Traps Extracted . | . . . . . . Installed . | . . . . . . Triggered . | . . . . . . Machines | -11 -10 -10 -10 -8 -8 ---------- Run | Yrd Mat Min Sub Mat Gar Machines Disabled . | . . . . . . Max in Single Turn . | . . . . . . Machines Repaired . | . . . . . . Machines Dismantled . | . . . . . . Machines Sabotaged . | . . . . . . Overloaded Fab Kills . | . . . . . . Hacking | -11 -10 -10 -10 -8 -8 --------- Run | Yrd Mat Min Sub Mat Gar Machines Accessed 3 | . 2 . . 1 . Terminals 2 | . 2 . . . . Fabricators . | . . . . . . Repair Stations . | . . . . . . Recycling Units . | . . . . . . Scanalyzers . | . . . . . . Garrison Access 1 | . . . . 1 . Total Hacks 7 | . 6 . . 1 . Successful 1 | . . . . 1 . Failed 6 | . 6 . . . . Catastrophic 2 | . 2 . . . . Database Lockouts . | . . . . . . Manual 6 | . 6 . . . . Terminals 6 | . 6 . . . . Fabricators . | . . . . . . Repair Stations . | . . . . . . Recycling Units . | . . . . . . Scanalyzers . | . . . . . . Garrison Access 1 | . . . . 1 . Terminal Hacks . | . . . . . . Fabricator Hacks . | . . . . . . Repair Station Hacks . | . . . . . . Recycling Unit Hacks . | . . . . . . Scanalyzer . | . . . . . . Garrison Access Hacks 1 | . . . . 1 . Unlock Access 1 | . . . . 1 . Unauthorized Hacks . | . . . . . . Terminals . | . . . . . . Fabricators . | . . . . . . Repair Stations . | . . . . . . Recycling Units . | . . . . . . Scanalyzers . | . . . . . . Garrison Access . | . . . . . . Data Cores Recovered . | . . . . . . Used . | . . . . . . Hacking Detections 2 | . 2 . . . . Full Trace Events 2 | . 2 . . . . Feedback Events . | . . . . . . Feedback Blocked . | . . . . . . Robot Schematics Acquired . | . . . . . . Robots Built . | . . . . . . Authchips . | . . . . . . Time . | . . . . . . Total Robot Build Rating . | . . . . . . Part Schematics Acquired . | . . . . . . Parts Built . | . . . . . . Authchips . | . . . . . . Time . | . . . . . . Total Part Build Rating . | . . . . . . Parts Repaired . | . . . . . . Time . | . . . . . . Parts Recycled . | . . . . . . Recycled Matter . | . . . . . . Retrieved Matter . | . . . . . . Retrieved Components . | . . . . . . Parts Scanalyzed . | . . . . . . Part Schematics Acquired . | . . . . . . Parts Damaged . | . . . . . . Bothacking | -11 -10 -10 -10 -8 -8 ------------ Run | Yrd Mat Min Sub Mat Gar Used RIF Installer 1 | . . . . . 1 Robots Hacked . | . . . . . . Non-combat . | . . . . . . Combat . | . . . . . . Robot Hacks Applied . | . . . . . . Relay Couplers Released . | . . . . . . Fabnet Peak Effective % . | . . . . . . Robots Rewired . | . . . . . . Allies Hacked . | . . . . . . Hacks Repelled . | . . . . . . Allies | -11 -10 -10 -10 -8 -8 -------- Run | Yrd Mat Min Sub Mat Gar Total Allies . | . . . . . . Largest Group . | . . . . . . Highest-Rated Group . | . . . . . . Highest-Rated Ally . | . . . . . . Total Orders . | . . . . . . Ally Attacks . | . . . . . . Total Damage . | . . . . . . Kills . | . . . . . . Allies Corrupted . | . . . . . . Allies Melted 1 | . . . 1 . . Intel | -11 -10 -10 -10 -8 -8 ------- Run | Yrd Mat Min Sub Mat Gar Robot Analysis Total . | . . . . . . Derelict Logs Recovered . | . . . . . . Drone Launches . | . . . . . . Drone Recoveries . | . . . . . . Exploration | -11 -10 -10 -10 -8 -8 ------------- Run | Yrd Mat Min Sub Mat Gar Turns Passed 1548 | 124 76 90 196 11 1051 Spaces Moved 760 | 47 80 53 113 10 457 Core 6 | 6 . . . . . Treads . | . . . . . . Legs . | . . . . . . Wheels 754 | 41 80 53 113 10 457 Hover . | . . . . . . Flight . | . . . . . . Fastest Speed 50 | 50 95 95 95 110 90 Average Speed 106 | 92 95 95 109 110 110 Slowest Speed 120 | 100 95 95 110 110 120 Overloaded Moves . | . . . . . . Propulsion Burnouts . | . . . . . . Robots Hopped . | . . . . . . Cave-ins Triggered . | . . . . . . Exploration Rate (%) 13 | 3 22 13 8 2 32 Regions Visited 5 Branch Regions 2 Pre-discovered Areas . | . . . . . . Known Exits Taken 1 | . . . . 1 . Unknown Exits Taken 4 | 1 1 1 1 . . Scrap Searched 4 | . . 1 3 . . Spaces Dug 2 | . . 2 . . . Terrain Destroyed 2 | . . 2 . . . Melee . | . . . . . . Projectile 2 | . . 2 . . . AOE . | . . . . . . Terrain Rammed . | . . . . . . Walls Destroyed . | . . . . . . Machines Disabled . | . . . . . . Actions | -11 -10 -10 -10 -8 -8 --------- Run | Yrd Mat Min Sub Mat Gar Total 1297 | 82 79 65 160 10 901 Wait 299 | . . . 18 . 281 Move 756 | 46 79 52 112 10 457 Hop . | . . . . . . Pick Up 16 | 4 . 3 4 . 5 Fast Attach 15 | 8 . . 1 . 6 Attach 6 | . . . . . 6 Detach . | . . . . . . Swap 9 | . . 1 2 . 6 Drop 18 | 1 . . 7 . 10 Fire 116 | 23 . 9 16 . 68 Melee . | . . . . . . Ram 6 | . . . . . 6 Kick . | . . . . . . Crush . | . . . . . . Escape Stasis 56 | . . . . . 56 Rewire . | . . . . . . Trap . | . . . . . . Miscellaneous . | . . . . . . Route ------- -11/Scrapyard -10/Materials -10/Mines -10/Subcaves -8/Materials -8/Garrison History --------- Turn | Location | Event 19 | -11/Scrapyard | Discovered new exit (range 16) 125 | -11/Scrapyard | Entered Materials 170 | -10/Materials | Discovered new exit (range 11) 201 | -10/Materials | Entered Mines 289 | -10/Mines | Discovered new exit (range 2) 291 | -10/Mines | Entered Subcaves 306 | -10/Subcaves | Build established: Mutant 384 | -10/Subcaves | Ambushed by swarm of Subdwellers 450 | -10/Subcaves | Discovered new exit (range 13) 459 | -10/Subcaves | Lost 4 allies 484 | -10/Subcaves | Ambushed by angry Subdweller bent on revenge 487 | -10/Subcaves | Entered Materials 487 | -8/Materials | Evolved 4 slots: Utility x4 498 | -8/Materials | Identified exit to Garrison 498 | -8/Materials | Entered Garrison 508 | -8/Garrison | Triggered checkpoint 900 | -8/Garrison | Build established: Scavenger-Mutant 971 | -8/Garrison | Triggered checkpoint 1115 | -8/Garrison | Triggered checkpoint 1504 | -8/Garrison | Core integrity fell below 50% 1531 | -8/Garrison | Installed Relay Interface Framework 1533 | -8/Garrison | Core integrity fell below 20% 1549 | -8/Garrison | Destroyed by P-60 Hacker with Shock Rifle Last Messages --------------- 01506_ Hrd. Medium Armor Plating destroyed. 01507_ Overheating: Hrd. Medium Armor Plating damaged (-30). 01507_ Overheating: Arm. Wheel damaged (-50). 01507_ Overheating: Arm. Wheel damaged (-10). 01507_ Overheating: Seismic Detector damaged (-12). 01508_ Hrd. Medium Armor Plating destroyed. 01509_ Arm. Wheel destroyed. 01509_ Acquired 31 matter. 01516_ Overheating: Energy bleed (-9). 01527_ Triggered Alarm Trap. 01527_ An alarm sounds. Initiating installation procedure... 01531_ Relay Interface Framework installed. 01536_ Arm. Wheel destroyed. 01538_ Slammed into P-60 Hacker. 01540_ Arm. Wheel destroyed. 01545_ Mining Laser destroyed. 01545_ Broken Wheel destroyed. Map ----- +----------------------------------------------------+ | ??????####??# #?????# #?????????????? | | ??????# ?# #?????#!!##### #####?????????????? | | ?## ## ## #?????#=!#??## #####?????????????? | | ?# =#######[%#??#! !#?????????????? | | *%+*= [%%*#??#! !!#?????????????? | | =="=* [===#??########?????????????? | | ## ## ## %=##########???????????????????????? | | ?# ## ## ###??????????????????????????????? | | ?" #??????????????????????????????? | | ?" #??????????????????????????????? | | ?" #??????????????????????????????? | | ?" #??????????????????????????????? | | ?# ## ## ###???????#######????????????????? | | ?? ??# ## ########### """"#????????????????? | | ? "#????????????????? | | ? # """"#????????????????? | | ?# ######## s#######????????????????? | | ?## ##""""######??????#s #??????????????????????? | | ???????????????????????#p #??????????????????????? | | ???????????????????????# #??????????????????????? | | ?????????????????## #### ########???????????????? | | ?????????????# gp ; ????????? | | ?????????????????## #### ##### ##???????????????? | | ???????????????????????# #??????????????????????? | | ???????????????????????# #??????????????????????? | | ???????????????????????# @#??????????????????????? | | ???????????????????????# #??????????????????????? | | ?????????????????????? #??????????????????????? | | ?????????????????????### #??????????????????????? | | ???????????????????????# ??????????????????????? | | ???????????????????????# ??????????????????????? | | ???????????????????????####??????????????????????? | | ?????????????????????????????????????????????????? | | ?????????????????????????????????????????????????? | | ?????????????????????????????????????????????????? | | ?????????????????????????????????????????????????? | | ?????????????????????????????????????????????????? | | ?????????????????????????????????????????????????? | | ?????????????????????????????????????????????????? | | ?????????????????????????????????????????????????? | | ?????????????????????????????????????????????????? | | ?????????????????????????????????????????????????? | | ?????????????????????????????????????????????????? | | ?????????????????????????????????????????????????? | | ?????????????????????????????????????????????????? | | ?????????????????????????????????????????????????? | | ?????????????????????????????????????????????????? | | ?????????????????????????????????????????????????? | | ?????????????????????????????????????????????????? | | ?????????????????????????????????????????????????? | +----------------------------------------------------+ Best States ------------- Heat Dissipation 31 Energy Generation 10 Energy Capacity 125 Matter Stores 300 Matter Capacity 300 Sight Range 16 Terrain Scan Density 10 Armor Coverage 1475 Evasion (%) 41 Item Schematics ----------------- None Robot Schematics ------------------ None Fabricated ------------ Nothing Alien Tech Used ----------------- None Achievements -------------- None Challenges ------------ None Game ------ Seed ArmorForceShifter Manual? 0 Play Time 00:14:38 Cumulative 65.0 hours Start 2024.04.09 @ 13:17:34 End 2024.04.09 @ 13:26:53 Sessions 1 Manual Loads 0 Difficulty Rogue Special Mode None Game No. 78 Rogue 78 Adventurer 0 Explorer 0 Win Type - Total 0 Types 0/0/0/0/0/0/0/0/0 Lore% 42 Gallery% 60 Achievement% 48 Wizard Run 0 Options --------- Layout 1 ASCII 0 Keyboard 0 Movement Numpad Keybinds 0 Fullscreen 1 Font 24/Smallcaps Map View 50x35 Zoom Use 0% Tactical HUD 1 Map Filters NONE Filters NONE Steam 1 RUN: 5a4459a4-08fb-4aa7-a148-f8f988ff7b13